[Event "Karel Janecek Open 2025"]
[Site "Prague"]
[Date "2025.03.06"]
[Round "8.6"]
[White "Ghazarian, Kirk"]
[Black "Sofronie, Iulian"]
[Result "0-1"]
[Annotator "ChessBase"]
[ECO "A62"]
[WhiteElo "2493"]
[BlackElo "2380"]
[PlyCount "112"]
[EventDate "2025.02.21"]
[EventType "swiss"]
[EventCountry "CZE"]
[SourceTitle "playchess.com"]
[Source "ChessBase"]
[SourceQuality "1"]
[TimeControl "40/5400+30:1800+30"]

1. d4 {[%emt 0:00:15]} Nf6 {[%emt 0:00:14]} 2. c4 {[%emt 0:00:06]} g6 {[%emt 0:01:19]} 3. g3 {[%emt 0:00:05]} Bg7 {[%emt 0:00:04]} 4. Bg2 {[%emt 0:00:04]} d6 {[%emt 0:00:06]} 5. Nc3 {[%emt 0:00:13]} O-O {[%emt 0:00:05]} 6. Nf3 {[%emt 0:00:03]} c5 {[%emt 0:00:12]} 7. d5 {[%emt 0:00:20]} e6 {[%emt 0:00:06]} 8. O-O {[%emt 0:00:04]} exd5 {[%emt 0:00:03]} 9. cxd5 {[%emt 0:00:05]} Re8 {[%emt 0:01:07]} 10. Re1 {[%emt 0:00:18]} Ne4 {[%emt 0:04:38]} 11. Nxe4 {[%emt 0:00:27]} Rxe4 {[%emt 0:00:05]} 12. Qc2 {[%emt 0:00:05]} Re8 {[%emt 0:01:50]} 13. e4 {[%emt 0:00:53]} Nd7 {[%emt 0:01:39]} 14. Bf4 {[%emt 0:00:46]} Nf8 {[%emt 0:17:10]} 15. e5 {[%emt 0:16:55]} Bf5 {[%emt 0:11:24]} 16. Qc4 {[%emt 0:03:22]} Qa5 {[%emt 0:16:28]} 17. Bd2 {[%emt 0:22:57]} Qc7 {[%emt 0:03:00]} 18. exd6 {[%emt 0:18:09]} Qxd6 {[%emt 0:00:45]} 19. Bc3 {[%emt 0:00:49]} Bxc3 {[%emt 0:06:13]} 20. bxc3 {[%emt 0:00:49]} Nd7 {[%emt 0:06:53]} 21. Qh4 {[%emt 0:05:20]} h5 {[%emt 0:01:45]} 22. Nd2 {[%emt 0:03:44]} b5 {[%emt 0:01:59]} 23. Be4 {[%emt 0:09:21]} Qf6 {[%emt 0:10:35]} 24. Qxf6 {[%emt 0:01:03]} Nxf6 {[%emt 0:00:04]} 25. Bxf5 {[%emt 0:00:06]} gxf5 {[%emt 0:00:05]} 26. d6 {[%emt 0:01:24]} Rxe1+ {[%emt 0:00:37]} 27. Rxe1 {[%emt 0:00:05]} Rd8 {[%emt 0:00:04]} 28. Nf1 {[%emt 0:15:19]} Rxd6 {[%emt 0:00:42]} 29. Re5 {[%emt 0:00:05]} Rd5 {[%emt 0:01:49]} 30. Re7 {[%emt 0:00:01]} Rd1 {[%emt 0:08:38]} 31. Rxa7 {[%emt 0:00:50]} Ne4 {[%emt 0:00:13]} 32. Kg2 {[%emt 0:00:04]} Rb1 {[%emt 0:00:22]} 33. Ne3 {[%emt 0:01:09]} Rb2 {[%emt 0:00:07]} 34. Nd5 {[%emt 0:00:16]} Rxf2+ {[%emt 0:01:22]} 35. Kg1 {[%emt 0:00:01]} Rd2 {[%emt 0:01:13]} 36. Ne7+ {[%emt 0:01:26]} Kg7 {[%emt 0:00:12]} 37. Nxf5+ {[%emt 0:00:03]} Kf6 {[%emt 0:00:07]} 38. Ne3 {[%emt 0:01:13]} Nxc3 {[%emt 0:00:50]} 39. Rc7 {[%emt 0:00:30]} c4 {[%emt 0:01:41]} 40. Rc5 {[%emt 0:01:07]} Re2 {[%emt 0:01:07]} 41. Nf1 {[%emt 0:00:54]} Rxa2 {[%emt 0:00:21]} 42. Rxh5 {[%emt 0:00:12]} Ke6 {[%emt 0:13:14]} 43. Rc5 {[%emt 0:02:34]} Re2 {[%emt 0:01:02]} 44. h4 {[%emt 0:02:33]} Ne4 {[%emt 0:04:53]} 45. Rxb5 {[%emt 0:02:08]} c3 {[%emt 0:00:05]} 46. Rb8 {[%emt 0:01:25]} Kf5 {[%emt 0:08:17]} 47. Rg8 {[%emt 0:02:50]} Nd2 {[%emt 0:03:57]} 48. Rc8 {[%emt 0:01:54]} Ne4 {[%emt 0:01:22]} 49. Rg8 {[%emt 0:00:37]} Kf6 {[%emt 0:00:13]} 50. Rc8 {[%emt 0:01:50]} c2 {[%emt 0:00:18]} 51. Rc6+ {[%emt 0:00:09]} Kg7 {[%emt 0:00:12]} 52. g4 {[%emt 0:02:41]} Nd2 {[%emt 0:00:39]} 53. Ne3 {[%emt 0:00:18]} Re1+ {[%emt 0:00:41]} 54. Kf2 {[%emt 0:00:02]} c1=Q {[%emt 0:00:09]} 55. Nf5+ {[%emt 0:00:03]} Kh7 {[%emt 0:00:21]} 56. Rxc1 {[%emt 0:01:14]} Rxc1 {[%emt 0:00:04]} 0-1

[Event "Karel Janecek Open 2025"]
[Site "Prague"]
[Date "2025.03.06"]
[Round "8.7"]
[White "Isik, Alparslan"]
[Black "Stinka, Jakub"]
[Result "1-0"]
[Annotator "TA"]
[ECO "C42"]
[WhiteElo "2477"]
[BlackElo "2377"]
[PlyCount "93"]
[EventDate "2025.02.21"]
[EventType "swiss"]
[EventCountry "CZE"]
[SourceTitle "playchess.com"]
[Source "ChessBase"]
[SourceQuality "1"]
[TimeControl "40/5400+30:1800+30"]

{[%evp 9,93,16,19,2,26,9,13,20,18,9,26,12,26,2,17,9,14,-21,11,6,17,14,25,4,21,12,19,18,53,36,41,7,11,10,14,10,27,8,18,9,8,4,20,8,10,0,37,8,10,10,14,0,0,0,0,0,-7,0,0,-10,-5,-1,-9,-10,0,0,137,130,139,127,161,143,270,249,397,390,383,379,480,460,553,496,690,554,5775,537]} 1. e4 {[%emt 0:06:03]} e5 {[%emt 0:00:36]} 2. Nf3 {[%emt 0:00:06]} Nf6 {[%emt 0:00:12]} 3. Nxe5 {[%emt 0:00:25]} d6 {[%emt 0:00:04]} 4. Nd3 {[%emt 0:01:12]} Nxe4 {[%emt 0:00:15]} 5. Qe2 {[%emt 0:00:05]} Qe7 $1 {[%emt 0:00:35]} 6. Nf4 {[%emt 0:00:05] C42: Petroff Defence: 3 Nxe5 and unusual White 3rd moves.} Nf6 {[%emt 0:00:56] Repels Nd5} 7. d4 {[%emt 0:04:21]} Qxe2+ {[%emt 0:01:34]} 8. Bxe2 {[%emt 0:00:02] Successful Defense White. The position is equal.} Nc6 {[%emt 0:00:49]} 9. c3 {[%emt 0:03:04]} d5 {[%emt 0:02:16]} 10. f3 {[%emt 0:00:42]} h5 {[%emt 0:02:54] Not much happening anymore} 11. Bd3 {[%emt 0:01:59]} Bd6 $146 {[%emt 0:05:32]} (11... Ne7 12. Kf2 Bf5 13. Re1 Bxd3 14. Nxd3 Nd7 15. Bg5 f6 16. Bd2 Kf7 17. Na3 c6 {0-1 Uruci,E (2297)-Grabarczyk,M (2337) EU-ch Blitz Katowice 2022 (20)}) 12. Kf2 {[%emt 0:00:13]} Ne7 {[%emt 0:02:42]} 13. Re1 {[%emt 0:00:45]} Bd7 {[%emt 0:03:08]} 14. Na3 {[%emt 0:00:25][%cal Bb1a3,Ba3c2,Bc2e3,Be3g2,Bg2f4][%mdl 32]} c6 {[%emt 0:06:55] Dodges Nb5} 15. h4 {[%emt 0:03:20] The position is symmetric and equal} O-O-O {[%emt 0:04:39]} 16. Nc2 {[%emt 0:00:14]} Bf5 {[%emt 0:11:12]} 17. Ne3 {[%emt 0:00:57]} Bxd3 {[%emt 0:00:15]} 18. Nxd3 {[%emt 0:00:02]} Rde8 {[%emt 0:01:29]} 19. g3 {[%emt 0:00:49]} Nd7 {[%emt 0:02:40]} 20. Ng2 {[%emt 0:01:15]} Nf5 {[%emt 0:02:00]} 21. Bf4 {[%emt 0:00:08]} g6 {[%emt 0:04:44]} 22. Bxd6 {[%emt 0:01:11]} Nxd6 {[%emt 0:00:07]} (22... Rxe1 {simplifies} 23. Rxe1 Nxd6 24. Ngf4 Kd8) 23. Ngf4 {[%emt 0:00:09]} Nf5 {[%emt 0:03:49]} 24. Rxe8+ {[%emt 0:02:03]} Rxe8 {[%emt 0:00:09]} 25. Rh1 {[%emt 0:00:08]} Nh6 {[%emt 0:02:57]} 26. Ng2 {[%emt 0:01:41]} Nf5 {[%emt 0:02:04]} 27. g4 {[%emt 0:06:51]} Ng7 {[%emt 0:03:41]} 28. Ngf4 {[%emt 0:05:25]} Rh8 {[%emt 0:03:44]} 29. Kg2 {[%emt 0:13:54]} Kc7 {[%emt 0:03:49]} 30. b3 {[%emt 0:03:10]} Kd6 {[%emt 0:06:52]} 31. c4 {[%emt 0:00:52]} dxc4 {[%emt 0:00:32]} 32. bxc4 {[%emt 0:00:01]} b6 {[%emt 0:00:32]} 33. Nf2 {[%emt 0:19:07]} Nf6 {[%emt 0:03:21]} 34. N4d3 {[%emt 0:12:23]} Ne6 {[%emt 0:02:51]} 35. g5 {[%emt 0:00:37]} Nd7 {[%emt 0:00:28]} 36. Ne4+ {[%emt 0:00:08]} Kc7 {[%emt 0:00:57]} 37. d5 {[%emt 0:00:04]} cxd5 {[%emt 0:01:36]} (37... Nd4 $11 {keeps the balance.}) 38. cxd5 $16 {[%emt 0:00:01]} Nec5 {[%emt 0:06:55]} 39. Rc1 {[%emt 0:02:05]} Re8 {[%emt 0:04:30]} 40. Kf2 {[%emt 0:02:08]} Kb8 {[%emt 0:03:33]} (40... a5 $16 41. Nexc5 bxc5) 41. Ndxc5 {[%emt 0:30:34]} Nxc5 {[%emt 0:30:08]} (41... bxc5 {was called for.} 42. Nxc5 Nb6) 42. Nxc5 $18 {[%emt 0:00:15]} bxc5 {[%emt 0:00:07]} 43. Rxc5 {[%emt 0:00:06] KR-KR. White is a pawn up.} Re5 {[%emt 0:02:35]} 44. f4 {[%emt 0:02:44] White is clearly winning.} Re4 {[%emt 0:00:00]} 45. Kf3 {[%emt 0:00:00]} Ra4 {[%emt 0:00:00]} 46. d6 {[%emt 0:00:00]} Rxa2 {[%emt 0:00:00]} 47. Ke4 {[%emt 0:00:35] Weighted Error Value: White=0.09 (flawless) /Black=0.40  Mistake:       	---       	Black=3      Inaccurate:     	White=3     	Black=5      OK:         	White=11    	Black=13     Best:        	White=2     	---} (47. Ke3 $142 Ra3+ 48. Ke4) 1-0

[Event "Karel Janecek Open 2025"]
[Site "Prague"]
[Date "2025.03.06"]
[Round "8.8"]
[White "Gloeckler, Christian"]
[Black "Urazayev, Arystanbek"]
[Result "1/2-1/2"]
[Annotator "TA"]
[ECO "C78"]
[WhiteElo "2334"]
[BlackElo "2467"]
[PlyCount "157"]
[EventDate "2025.02.21"]
[EventType "swiss"]
[EventCountry "CZE"]
[SourceTitle "playchess.com"]
[Source "ChessBase"]
[SourceQuality "1"]
[TimeControl "40/5400+30:1800+30"]

{[%evp 13,157,31,27,18,30,-11,-7,6,2,8,0,-69,-75,-70,-79,-60,-52,-82,-85,-83,-82,-103,-102,-101,-106,-120,-100,-112,-113,-172,-180,-187,-198,-197,-200,-188,-198,-174,-187,-167,-93,-86,-91,-92,-87,-125,-38,-80,-27,-25,-30,-40,-18,-20,-22,-28,-31,-112,-58,-135,-137,-144,-6,-12,-8,-8,0,0,0,0,0,0,0,0,0,0,0,0,0,0,0,0,0,0,-7,-42,-31,-31,-31,-31,0,0,0,0,0,-42,-42,-42,-42,-42,-42,-42,-42,-42,0,-42,-42,-42,-42,-42,-42,-42,0,0,0,0,0,0,0,0,0,0,0,0,0,0,0,0,0,0,0,0,0,0,0,0,0,0,0,0,0,0,0,0,0,0]} 1. e4 {[%emt 0:00:01]} e5 {[%emt 0:00:05]} 2. Nf3 {[%emt 0:00:06]} Nc6 {[%emt 0:00:08]} 3. Bb5 {[%emt 0:00:05]} a6 {[%emt 0:00:43]} 4. Ba4 {[%emt 0:00:05]} Nf6 {[%emt 0:01:18]} 5. O-O {[%emt 0:00:08]} Bc5 {[%emt 0:00:16]} 6. c3 {[%emt 0:00:17]} O-O {[%emt 0:00:35]} 7. d4 {[%emt 0:01:45]} Ba7 {[%emt 0:00:29]} 8. Re1 {[%emt 0:07:45] C78: Ruy Lopez: Archangelsk and Möller Defences.} d6 $1 {[%emt 0:00:52] 8...d6 is better than 8...b5.} 9. Be3 {[%emt 0:10:15]} b5 {[%emt 0:04:23]} 10. Bc2 {[%emt 0:06:11]} Bg4 $146 {[%emt 0:03:19]} (10... Ng4 11. Bg5 f6 12. Bc1 g5 13. h3 Nh6 14. a4 Nf7 15. axb5 axb5 16. Be3 Rb8 {½-½ Sripada,H (2132)-Cozianu,C (2356) Redmond PNWCC Schev 1 2023 (10.2)}) 11. dxe5 {[%emt 0:06:48]} Nxe5 {[%emt 0:14:37][%cal Bc6e5,Be5c4,Bc4b2][%mdl 32]} 12. Nbd2 {[%emt 0:01:16]} (12. Bxa7 $1 $11 Bxf3 13. gxf3 (13. Qd4 $2 Nh5 $19) 13... Rxa7 14. f4) 12... Bxe3 $15 {[%emt 0:01:51]} 13. Rxe3 {[%emt 0:00:36]} Bxf3 {[%emt 0:02:38]} 14. Nxf3 {[%emt 0:02:30]} Nc4 {[%emt 0:04:32][%csl LRb2,LRe3]} 15. Re2 {[%emt 0:02:45]} Nxb2 {[%emt 0:01:11]} 16. Qf1 {[%emt 0:02:26]} Nc4 {[%emt 0:04:28]} 17. Nd4 {[%emt 0:01:19]} c5 {[%emt 0:03:07]} 18. Nf5 {[%emt 0:05:30]} g6 {[%emt 0:00:57]} 19. Ng3 {[%emt 0:00:51]} Re8 {[%emt 0:06:50]} 20. f4 {[%emt 0:03:31]} Na3 {[%emt 0:14:11] Excellent horsemanship.} 21. Bd1 {[%emt 0:08:06]} (21. Qf3 $17) 21... c4 $19 {[%emt 0:03:44]} 22. Qf2 {[%emt 0:06:08]} Rb8 {[%emt 0:03:17]} 23. e5 {[%emt 0:11:14]} dxe5 {[%emt 0:05:03]} 24. fxe5 {[%emt 0:02:33]} Nd7 {[%emt 0:08:44]} 25. Rd2 {[%emt 0:00:50]} Qe7 $1 {[%emt 0:03:50]} (25... Rxe5 26. Bg4 f5 27. Nxf5 gxf5 28. Bxf5 $11) 26. Ne4 {[%emt 0:03:58][%cal Od2d7] and Rxd7! would now be decisive} Nxe5 {[%emt 0:00:40]} (26... Kg7 $1 $19 27. Nd6 Red8 28. Qxf7+ Qxf7 29. Nxf7 Kxf7 30. e6+ Kxe6 31. Bg4+ Kf6 32. Bxd7 Kg7) 27. Nf6+ $17 {[%emt 0:01:28]} Kg7 {[%emt 0:00:08]} 28. Nxe8+ {[%emt 0:01:32]} Rxe8 {[%emt 0:00:05]} 29. Qd4 {[%emt 0:03:21]} b4 {[%emt 0:02:26]} (29... a5 $17 30. Kh1 Qd7) 30. Ba4 $1 $15 {[%emt 0:01:29]} bxc3 {[%emt 0:01:14][%csl Oc3] Black has a strong passed pawn} (30... Rb8 $1 $17) 31. Qxc3 $11 {[%emt 0:03:19]} Nb5 {[%emt 0:00:21]} 32. Bxb5 {[%emt 0:01:04]} axb5 {[%emt 0:00:03]} 33. Rd5 $1 {[%emt 0:01:22]} b4 {[%emt 0:03:39]} 34. Qd4 {[%emt 0:00:14]} f6 {[%emt 0:01:34]} 35. h3 {[%emt 0:01:36]} (35. Rf1 $1 $15) 35... c3 {[%emt 0:00:41] Black plays on the queen side and is better} (35... Rc8 $17 36. Kh1 c3) 36. a3 {[%emt 0:00:51] [#]} Ra8 $1 $17 {[%emt 0:02:55]} (36... bxa3 37. Qxc3 Ra8 38. Rd2 $14) 37. Qc5 {[%emt 0:02:11] [#]} Qxc5+ {[%emt 0:01:48]} ({Black should play} 37... Kf7 $1 $17 {aiming for ...Qxc5+.} 38. Rf1 Qxc5+ 39. Rxc5 Rxa3 (39... Nd7 40. Rc7 $14) 40. Rxe5 b3) 38. Rxc5 {[%emt 0:00:01][%mdl 4096] Endgame KRR-KRN} Kh6 {[%emt 0:01:40]} (38... Rxa3 39. Rxa3 bxa3 40. Rxc3 $16) 39. Rc7 {[%emt 0:01:38]} Ra4 {[%emt 0:00:26]} (39... Rxa3 40. Rxa3 bxa3 41. Rxc3 $16) ({Don't play} 39... bxa3 40. Rxc3 a2 41. Rc2 $14) 40. Rb1 {[%emt 0:00:57]} bxa3 {[%emt 0:01:01]} 41. Rxc3 {[%emt 0:30:33]} Nc4 {[%emt 0:01:25]} 42. Rbc1 {[%emt 0:00:00]} Nd6 {[%emt 0:02:38]} 43. Ra1 {[%emt 0:00:00]} Nb5 {[%emt 0:00:53]} 44. Rb3 {[%emt 0:00:00]} Ra5 {[%emt 0:00:04]} 45. Ra2 {[%emt 0:00:00]} f5 {[%emt 0:02:40]} 46. Kf2 {[%emt 0:00:00]} Kg5 {[%emt 0:00:19]} 47. g3 {[%emt 0:00:00]} Kf6 {[%emt 0:00:51]} 48. h4 {[%emt 0:00:00]} Ke5 {[%emt 0:02:46]} 49. Kg2 {[%emt 0:00:00]} (49. Ke3 h6 50. Kd3 g5 51. hxg5 hxg5 52. Rb1) 49... Kd5 {[%emt 0:04:59]} (49... h5 {seems wilder.} 50. Rd3 Ke4 51. Rb3 Kd4) 50. Rxb5+ {[%emt 0:00:00]} Rxb5 {[%emt 0:00:06]} 51. Rxa3 $15 {[%emt 0:00:00] KR-KR. Black is a pawn up.} Ke4 {[%emt 0:04:53]} 52. Ra4+ {[%emt 0:00:00]} Ke5 {[%emt 0:00:32]} 53. Ra7 {[%emt 0:00:00]} h6 {[%emt 0:03:18]} 54. Re7+ {[%emt 0:00:00]} Kd5 {[%emt 0:03:51]} 55. Rd7+ {[%emt 0:00:00]} Ke4 {[%emt 0:01:14]} 56. Re7+ {[%emt 0:00:00]} Re5 {[%emt 0:01:29]} 57. Rh7 {[%emt 0:00:00]} h5 {[%emt 0:02:05]} 58. Ra7 {[%emt 0:00:00]} Kd5 {[%emt 0:02:01]} 59. Ra5+ {[%emt 0:02:31]} Ke6 {[%emt 0:00:08]} 60. Ra6+ {[%emt 0:00:18]} Kf7 {[%emt 0:00:06]} 61. Ra7+ {[%emt 0:00:56]} Kf6 {[%emt 0:00:08]} 62. Ra6+ {[%emt 0:00:17]} Re6 {[%emt 0:00:09]} 63. Rxe6+ {[%emt 0:03:25] The position is equal.} Kxe6 $11 {[%emt 0:00:05] K3P-KPP. Black is a pawn up.} 64. Kf3 {[%emt 0:00:06]} Kf6 {[%emt 0:02:49]} 65. Kf4 {[%emt 0:00:14]} Kf7 {[%emt 0:00:14]} 66. Kf3 {[%emt 0:00:50]} Ke6 {[%emt 0:00:15]} 67. Kf4 {[%emt 0:00:18]} Kf6 {[%emt 0:00:25]} 68. Kf3 {[%emt 0:00:11]} g5 {[%emt 0:02:30]} (68... Ke5 $5 69. Ke3 $8 Kd6 $11) 69. hxg5+ {[%emt 0:00:09]} Kxg5 {[%emt 0:00:08] KPP-KP. Black is a pawn up.} 70. Kf2 {[%emt 0:00:09]} Kh6 {[%emt 0:00:49]} 71. Kf3 {[%emt 0:00:31]} Kg6 {[%emt 0:00:11]} 72. Kf4 {[%emt 0:00:25]} Kf6 {[%emt 0:00:08]} 73. Kf3 {[%emt 0:00:11]} Kf7 {[%emt 0:01:06]} 74. Kf4 {[%emt 0:00:28]} Kg6 {[%emt 0:00:12]} 75. Kf3 {[%emt 0:00:13]} Kg5 {[%emt 0:00:13]} 76. Kf2 {[%emt 0:00:08]} Kg4 {[%emt 0:00:52]} 77. Kg2 {[%emt 0:00:09]} h4 {[%emt 0:00:25]} 78. gxh4 {[%emt 0:00:05]} Kxh4 {[%emt 0:00:17] ( -> ...Kg4)} 79. Kf3 {[%emt 0:00:06] And White is the lucky defender.   Weighted Error Value: White=0.14 (very precise) /Black=0.14 (very precise)   Mistake:       	White=4     	Black=5      Inaccurate:     	White=6     	Black=3      OK:         	White=29    	Black=28     Best:        	White=11    	Black=6      Strong:       	White=2     	Black=1} 1/2-1/2

[Event "Karel Janecek Open 2025"]
[Site "Prague"]
[Date "2025.03.06"]
[Round "8.9"]
[White "Zhao, Yuanhe"]
[Black "Kistrup, Nicolai"]
[Result "0-1"]
[Annotator "TA"]
[ECO "A09"]
[WhiteElo "2466"]
[BlackElo "2374"]
[PlyCount "78"]
[EventDate "2025.02.21"]
[EventType "swiss"]
[EventCountry "CZE"]
[SourceTitle "playchess.com"]
[Source "ChessBase"]
[SourceQuality "1"]
[TimeControl "40/5400+30:1800+30"]

{[%evp 9,78,-24,-12,-42,-22,-41,-32,-48,-59,-52,-43,-38,-20,-19,-27,-24,0,0,0,0,16,0,25,20,34,18,66,22,31,24,122,49,40,29,71,-27,-30,-86,-73,-77,-75,-72,0,-236,-243,-622,-604,-609,-588,-577,-565,-1052,-1033,-1054,-1035,-912,-651,-659,-657,-623,-620,-904,-858,-869,-694,-851,-866,-806,-793,-738,-738]} 1. Nf3 {[%emt 0:00:07]} d5 {[%emt 0:00:49]} 2. c4 {[%emt 0:00:08]} d4 {[%emt 0:00:10]} 3. b4 {[%emt 0:00:58]} c5 {[%emt 0:00:16]} 4. Bb2 {[%emt 0:00:09]} f6 {[%emt 0:00:47]} 5. bxc5 {[%emt 0:02:14]} e5 {[%emt 0:01:20][%cal Oc8f5]} 6. d3 {[%emt 0:00:15] A09: Réti Opening: 1 Nf3 d5 2 c4.} Nh6 $146 {[%emt 0:06:34]} ({Predecessor:} 6... Bxc5 7. g3 Bd7 8. Bg2 Bc6 9. O-O Ne7 10. Nbd2 O-O 11. Nb3 Nd7 12. Qd2 Bb6 {½-½ Benci,J (1924)-Gruca,M (2200) SVK-chT2A 2425 2024 (4.3)}) 7. g3 {[%emt 0:01:04]} Na6 {[%emt 0:04:43]} 8. c6 {[%emt 0:02:37] Black is slightly better.} bxc6 {[%emt 0:02:42]} 9. Bg2 {[%emt 0:00:14]} Rb8 {[%emt 0:05:28]} 10. Bc1 {[%emt 0:01:07]} Nf5 {[%emt 0:09:22]} 11. O-O {[%emt 0:00:11]} Be7 {[%emt 0:25:35]} 12. Nfd2 {[%emt 0:03:14]} c5 {[%emt 0:04:08]} 13. Qa4+ {[%emt 0:01:13]} Kf8 {[%emt 0:02:30]} 14. Na3 {[%emt 0:04:51]} Rb4 {[%emt 0:03:39]} 15. Qd1 {[%emt 0:00:21]} Nc7 {[%emt 0:01:29] Repels Nb5} 16. Ne4 {[%emt 0:04:47]} Bd7 {[%emt 0:13:39]} 17. Bd2 {[%emt 0:00:24]} Rb8 {[%emt 0:03:22]} (17... Rb6 $1 $11 {deserves consideration.}) 18. Ba5 {[%emt 0:11:41][%cal Oa3b5]} Qc8 $1 {[%emt 0:05:13]} 19. Qd2 {[%emt 0:00:18]} a6 {[%emt 0:01:52]} (19... Ne6 $1 $11) 20. Nc2 {[%emt 0:04:32]} (20. Rab1 $16) 20... Ne6 {[%emt 0:01:52]} 21. Rab1 {[%emt 0:03:40]} Kf7 {[%emt 0:00:44] [#]} 22. Bb6 {[%emt 0:02:12]} ({White should play} 22. Na3 $1 $16) 22... h5 {[%emt 0:02:13]} 23. Rb2 {[%emt 0:06:16]} (23. Ba5 $11 {keeps the balance.}) 23... h4 $17 {[%emt 0:01:24]} 24. Rfb1 {[%emt 0:05:09]} hxg3 {[%emt 0:00:45]} 25. hxg3 {[%emt 0:00:03]} Qg8 {[%emt 0:00:49]} (25... Bc6 $17 {...Nd6 is the strong threat.} 26. Ne1 Qd7) 26. Qa5 $2 {[%emt 0:02:06] [#]} (26. Ne1 $1 $11 {and White has nothing to worry.}) 26... Qh7 $1 $19 {[%emt 0:00:38]} 27. Bxc5 $2 {[%emt 0:02:45]} (27. Nxc5 Qh2+ 28. Kf1 Nxg3+ 29. fxg3 Nxc5 30. Bxc5 Rxb2 31. Rxb2 Qxg3 32. Ne1 Qf4+ 33. Nf3 (33. Kg1 $2 Qe3+ 34. Kf1 Bh3 $19)) 27... Rxb2 {[%emt 0:00:32] Black is clearly winning.} 28. Rxb2 {[%emt 0:00:03]} Qh2+ {[%emt 0:00:18]} 29. Kf1 {[%emt 0:00:04]} Nxc5 {[%emt 0:01:21]} 30. Nxc5 {[%emt 0:00:10] [#]} Nxg3+ $1 {[%emt 0:00:39][%mdl 512]} 31. fxg3 {[%emt 0:03:24]} Bh3 {[%emt 0:00:16]} 32. Ke1 {[%emt 0:00:37]} Qxg3+ {[%emt 0:00:35]} 33. Kd1 {[%emt 0:00:39]} Bxg2 {[%emt 0:00:23]} 34. Ne1 {[%emt 0:04:50]} Rh1 {[%emt 0:00:20]} 35. Nb3 {[%emt 0:07:14]} f5 {[%emt 0:00:48][%cal Oe7d8]} 36. Rb1 {[%emt 0:02:31]} Bh4 {[%emt 0:00:23][%cal Rh1e1] A strong pair of Bishops.} 37. Kc2 {[%emt 0:01:53] Nxg2 would now be deadly.} Rxe1 {[%emt 0:00:10]} 38. Rxe1 {[%emt 0:01:14]} Qxe1 {[%emt 0:00:03]} 39. Qxe5 {[%emt 0:00:17]} Bf6 {[%emt 0:00:52] Weighted Error Value: White=0.68/Black=0.29 (precise)   Loses game:     	White=1     	---        Mistake:       	White=4     	Black=3      Inaccurate:     	White=2     	Black=1      OK:         	White=9     	Black=5      Best:        	White=1     	---        Strong:       	---       	Black=2      Brilliant:      	---       	Black=1} 0-1